[Event "Marienbad A1-GM 2024"]
[Site "Marianske Lazne"]
[Date "2024.01.20"]
[Round "9.4"]
[White "Samani, Yamac"]
[Black "Natsidis, Christoph"]
[Result "0-1"]
[ECO "B41"]
[WhiteElo "2380"]
[BlackElo "2324"]
[Annotator "RC"]
[PlyCount "98"]
[EventDate "2024.01.10"]
[EventType "tourn"]
[EventCountry "CZE"]
[SourceTitle "playchess.com"]
[Source "ChessBase"]
[SourceQuality "1"]
[TimeControl "40/5400+30:1800+30"]

1. e4 {[%emt 0:00:05]} c5 {[%emt 0:07:13]} 2. Nf3 {[%emt 0:00:26]} e6 {[%emt 0:00:06]} 3. d4 {[%emt 0:00:39]} cxd4 {[%emt 0:00:06]} 4. Nxd4 {[%emt 0:00:06]} a6 {[%emt 0:00:02]} 5. a3 {[%emt 0:00:24]} Nf6 {[%emt 0:08:02]} 6. Nc3 {[%emt 0:00:18]} d6 {[%emt 0:02:52]} 7. Be3 {[%emt 0:00:26]} b5 {[%emt 0:04:14]} 8. g4 {[%emt 0:00:28]} Bb7 {[%emt 0:06:16]} 9. Bg2 {[%emt 0:00:23]} Nfd7 {[%emt 0:03:49]} 10. g5 {[%emt 0:06:47]} Ne5 {[%emt 0:06:06]} 11. h4 {[%emt 0:07:45]} Nbd7 {[%emt 0:12:58]} 12. Rh3 {[%emt 0:15:08]} Rc8 {[%emt 0:06:31]} 13. Bc1 {[%emt 0:03:10]} h5 {[%emt 0:13:37]} 14. Rg3 {[%emt 0:13:26]} g6 {[%emt 0:06:16]} 15. Bh3 {[%emt 0:05:47]} Bg7 {[%emt 0:02:30]} 16. f4 {[%emt 0:09:02]} Ng4 {[%emt 0:04:31]} 17. Nde2 {[%emt 0:07:24]} Nc5 {[%emt 0:00:31]} 18. Be3 {[%emt 0:08:55]} Nxe4 {[%emt 0:02:34]} 19. Nxe4 {[%emt 0:00:04]} Bxe4 {[%emt 0:00:02]} 20. Bd4 {[%emt 0:01:01]} Bxc2 {[%emt 0:02:32]} 21. Qd2 {[%emt 0:00:04]} e5 {[%emt 0:01:05]} 22. Bc3 {[%emt 0:00:08]} Bf5 {[%emt 0:00:43]} 23. Rd1 {[%emt 0:01:08]} O-O {[%emt 0:03:53]} 24. Qxd6 {[%emt 0:00:23]} exf4 {[%emt 0:01:18]} 25. Qxd8 {[%emt 0:04:01]} Rfxd8 {[%emt 0:00:15]} 26. Rxd8+ {[%emt 0:00:08]} Rxd8 {[%emt 0:00:04]} 27. Nxf4 {[%emt 0:00:12]} Bf8 {[%emt 0:03:28]} 28. Bxg4 {[%emt 0:01:57]} Bxg4 {[%emt 0:00:06]} 29. Rd3 {[%emt 0:01:01]} Rxd3 {[%emt 0:01:38]} 30. Nxd3 {[%emt 0:00:02]} Be7 {[%emt 0:00:59]} 31. Bb4 {[%emt 0:01:50]} Kf8 {[%emt 0:01:01]} 32. Kd2 {[%emt 0:00:36]} Ke8 {[%emt 0:00:21]} 33. Bxe7 {[%emt 0:02:53]} Kxe7 {[%emt 0:00:02]} 34. Ke3 {[%emt 0:00:14]} Kd6 {[%emt 0:00:52]} 35. Kd4 {[%emt 0:00:15]} a5 {[%emt 0:00:39]} 36. Nc5 {[%emt 0:03:08]} Bf3 {[%emt 0:00:20]} 37. Nb3 {[%emt 0:01:39]} a4 {[%emt 0:00:03]} 38. Nc5 {[%emt 0:00:37]} Bg2 {[%emt 0:00:34]} 39. Nd3 {[%emt 0:00:09]} Bf1 {[%emt 0:00:50]} 40. Nf4 {[%emt 0:00:13]} Bc4 {[%emt 0:00:22]} 41. Ng2 {[%emt 0:30:13]} Ke6 {[%emt 0:05:03]} 42. Ne3 {[%emt 0:00:00]} f6 {[%emt 0:02:03]} 43. Ke4 {[%emt 0:00:00]} fxg5 {[%emt 0:02:06]} 44. hxg5 {[%emt 0:00:00]} Kd6 {[%emt 0:04:32]} 45. Kf4 {[%emt 0:00:00]} Bd5 {[%emt 0:01:40]} 46. Nd1 {[%emt 0:00:00]} Be6 {[%emt 0:01:55]} 47. Nc3 {[%emt 0:00:00]} Kc5 {[%emt 0:02:21]} 48. Ke5 {[%emt 0:00:00]} Bf5 {[%emt 0:00:48]} 49. Nd1 {[%emt 0:00:00]} h4 0-1

[Event "Marienbad A1-GM 2024"]
[Site "Marianske Lazne"]
[Date "2024.01.20"]
[Round "9.5"]
[White "Neuman, Petr"]
[Black "Pang, Tao"]
[Result "1/2-1/2"]
[ECO "C10"]
[WhiteElo "2398"]
[BlackElo "2430"]
[Annotator "ChessBase"]
[PlyCount "30"]
[EventDate "2024.01.10"]
[EventType "tourn"]
[EventCountry "CZE"]
[SourceTitle "playchess.com"]
[Source "ChessBase"]
[SourceQuality "1"]
[TimeControl "40/5400+30:1800+30"]

1. e4 {[%emt 0:00:04]} e6 {[%emt 0:00:03]} 2. d4 {[%emt 0:00:07]} d5 {[%emt 0:00:03]} 3. Nd2 {[%emt 0:00:09]} dxe4 {[%emt 0:00:10]} 4. Nxe4 {[%emt 0:00:05]} Nd7 {[%emt 0:00:02]} 5. Nf3 {[%emt 0:01:31]} Ngf6 {[%emt 0:00:07]} 6. Bd3 {[%emt 0:02:58]} Nxe4 {[%emt 0:00:14]} 7. Bxe4 {[%emt 0:00:04]} Nf6 {[%emt 0:00:05]} 8. Bg5 {[%emt 0:00:59]} h6 {[%emt 0:15:27]} 9. Bxf6 {[%emt 0:04:01]} gxf6 {[%emt 0:00:13]} 10. Qe2 {[%emt 0:00:26]} c6 {[%emt 0:08:30]} 11. O-O-O {[%emt 0:01:43]} Qc7 {[%emt 0:03:31]} 12. Kb1 {[%emt 0:00:17]} Bd7 {[%emt 0:02:14]} 13. Nd2 {[%emt 0:11:36]} O-O-O {[%emt 0:02:43]} 14. Nc4 {[%emt 0:00:10]} Kb8 {[%emt 0:06:24]} 15. Bf3 {[%emt 0:03:45]} Bc8 {[%emt 0:01:46]} 1/2-1/2